[Event "Superbet Blitz Poland 2023"]
[Site "Warsaw"]
[Date "2023.05.24"]
[Round "9"]
[White "Duda, Jan-Krzysztof"]
[Black "Carlsen, Magnus"]
[Result "0-1"]
[ECO "A13"]
[WhiteElo "2724"]
[BlackElo "2853"]
[Annotator "TA"]
[PlyCount "180"]
[EventDate "2023.05.24"]
[EventType "tourn"]
[EventCountry "POL"]
[SourceTitle "playchess.com"]
[Source "ChessBase"]
[SourceQuality "1"]
[TimeControl "300+2"]

{[%evp 9,180,15,21,14,21,-22,0,0,0,0,5,-17,0,-24,-19,-31,-43,-33,-31,-25,0,-58,-14,-27,-24,-30,-23,-60,-53,-82,-84,-92,-104,-149,-56,-29,-40,-24,-27,-53,-64,-60,-75,-143,-131,-161,-156,-207,-196,-202,-137,-136,-136,-146,-131,-142,-79,-83,-40,-32,-12,-12,-12,-13,-12,-31,-31,-31,-31,-31,-31,-31,0,0,0,0,0,0,0,0,7,-12,-11,-11,0,-16,0,-81,0,-91,-13,-97,-91,-91,-91,-83,-78,-83,-83,-84,0,0,0,0,0,0,0,0,0,0,0,0,0,0,0,0,0,0,0,0,0,-85,-85,-85,-85,-85,-85,-120,-113,-113,-113,-163,-156,-156,-156,-185,-171,-1513,-1023,-2604,-2323,-2381,-2050,-2234,-2106,-2056,-1956,-1919,-1483,-1910,-1852,-1465,-1329,-4132,-3738,-2381,-2318,-29975,-29976,-29970,-29977,-29977,-29974,-29967,-5686,-29980,-29981,-29983,-29984,-29986,-29987,-29987,-29987]} 1. Nf3 {[%emt 0:00:02]} d5 {[%emt 0:00:16]} 2. c4 {[%emt 0:00:02]} e6 {[%emt 0:00:03]} 3. g3 {[%emt 0:00:04]} d4 {[%emt 0:00:06]} 4. Bg2 {[%emt 0:00:03]} Nc6 {[%emt 0:00:02]} 5. O-O {[%emt 0:00:07]} Bc5 {[%emt 0:00:22]} 6. d3 {[%emt 0:00:13] A13: English Opening: 1...e6.} Nf6 {[%emt 0:00:03]} 7. Bg5 {[%emt 0:00:14]} h6 {[%emt 0:00:07]} 8. Bxf6 {[%emt 0:00:02] The position is equal.} Qxf6 {[%emt 0:00:01]} 9. Nbd2 {[%emt 0:00:11]} Qd8 {[%emt 0:00:05]} 10. Ne1 {[%emt 0:00:16]} O-O {[%emt 0:00:02] [#]} 11. f4 $146 {[%emt 0:00:25]} ({Predecessor:} 11. Nc2 a5 12. Rb1 e5 13. a3 a4 14. b4 axb3 15. Nxb3 Be7 16. c5 Be6 17. Nb4 {1-0 Melkumyan,H (2655)-Svane,F (2501) Titled Tuesday intern op 10th May Late blitz 2022 (8)}) 11... a5 {[%emt 0:00:07]} 12. a3 {[%emt 0:00:11]} a4 {[%emt 0:00:08]} 13. Nc2 {[%emt 0:00:10]} Bd7 {[%emt 0:00:11]} 14. Qe1 {[%emt 0:00:26]} Na5 {[%emt 0:00:05]} 15. Qf2 {[%emt 0:00:09]} (15. Ne4 $11 Qe7 16. Nxc5 Qxc5 17. Qb4) 15... Bc8 {[%emt 0:00:59]} 16. Kh1 {[%emt 0:00:11]} Ra6 {[%emt 0:00:01]} 17. Ne4 {[%emt 0:00:11]} Ba7 {[%emt 0:00:02]} 18. Nb4 {[%emt 0:00:07]} Rb6 {[%emt 0:00:02]} 19. Nc5 {[%emt 0:01:30]} Rd6 $1 {[%emt 0:00:07]} 20. Ne4 {[%emt 0:00:11]} (20. Nxa4 $2 c5 21. Na2 Nb3 $17) 20... Rd7 {[%emt 0:00:27]} 21. c5 {[%emt 0:00:04][%cal Bc4c5,Bc5c6][%mdl 32] [#]} Nb3 {[%emt 0:00:09]} (21... f5 22. c6 bxc6 23. Nd2 $15) ({Better is} 21... c6 $1 $17 22. Rad1 (22. f5 $2 exf5 23. Qxf5 Nb3 $19) 22... Nb3) 22. c6 $1 $15 {[%emt 0:00:01]} Re7 {[%emt 0:00:07]} 23. Rad1 {[%emt 0:00:03]} b5 {[%emt 0:00:07]} 24. Nd2 {[%emt 0:00:11]} Nxd2 {[%emt 0:00:12]} 25. Rxd2 {[%emt 0:00:02][%cal Ob2b3]} f5 {[%emt 0:00:01]} 26. Bf3 {[%emt 0:00:16]} (26. b3 $142) 26... Qd6 $17 {[%emt 0:00:02]} 27. Rb1 {[%emt 0:00:06]} e5 {[%emt 0:00:04]} 28. fxe5 {[%emt 0:00:03]} (28. Rdd1 $17 {keeps fighting.}) 28... Rxe5 $19 {[%emt 0:00:01]} 29. b3 {[%emt 0:00:07]} axb3 {[%emt 0:00:02] White is weak on the dark squares} 30. Rxb3 {[%emt 0:00:01]} Be6 {[%emt 0:00:10]} 31. Rb1 {[%emt 0:00:05]} Bb6 {[%emt 0:00:02]} 32. Rdb2 {[%emt 0:00:09]} g5 {[%emt 0:00:27]} (32... Ra8 $142 33. Nc2 Ra5) 33. Nc2 $17 {[%emt 0:00:01]} g4 {[%emt 0:00:01]} 34. Bg2 {[%emt 0:00:01]} f4 {[%emt 0:01:01]} 35. gxf4 {[%emt 0:00:03]} Rh5 {[%emt 0:00:01]} 36. Rxb5 {[%emt 0:00:12]} (36. Qg3 {feels hotter.} Rxf4 37. Rxb5 Rxb5 38. Rxb5 Rf1+ 39. Bxf1 Qxc6+ 40. Bg2) 36... Rxf4 {[%emt 0:00:02]} 37. Qxf4 {[%emt 0:00:01]} (37. Qg3 {is interesting.} Rxb5 38. Rxb5 Rf1+ 39. Bxf1 Qxc6+ 40. Bg2) 37... Rxb5 {[%emt 0:00:18]} 38. Rf1 {[%emt 0:00:01]} Qxf4 {[%emt 0:00:06]} 39. Rxf4 {[%emt 0:00:02][%cal Oh1g1]} Rb1+ {[%emt 0:00:01]} 40. Rf1 {[%emt 0:00:01]} Rb2 {[%emt 0:00:01]} 41. Nb4 {[%emt 0:00:03]} Rxe2 {[%emt 0:00:04]} 42. Nd5 {[%emt 0:00:04]} Bxd5 {[%emt 0:00:01]} 43. Bxd5+ $11 {[%emt 0:00:01][%mdl 4096] Endgame KRB-KRB} Kg7 {[%emt 0:00:01]} 44. a4 {[%emt 0:00:02]} h5 {[%emt 0:00:02]} 45. Ra1 {[%emt 0:00:03]} Ba5 {[%emt 0:00:04]} 46. Rf1 {[%emt 0:00:02]} Bb4 {[%emt 0:00:03]} 47. h3 {[%emt 0:00:03]} g3 {[%emt 0:00:02]} 48. Bg2 {[%emt 0:00:02]} (48. Rf7+ $11 {remains equal.} Kg6 49. Rxc7) 48... Ra2 {[%emt 0:00:03]} (48... h4 $17 {Hoping for ...Rd2.} 49. Rf5 Bd2) 49. Rf4 {[%emt 0:00:02]} (49. Bd5 $11 Rh2+ 50. Kg1) 49... Bd6 {[%emt 0:00:01] Black is more active.} ({Black should try} 49... Rxa4 $17 {White must now prevent ...Bd2.} 50. Bd5 Bd6) 50. Rf5 {[%emt 0:00:01]} (50. Rf7+ $1 $11 {keeps the balance.} Kg6 51. Be4+ Kg5 52. Rf5+ Kh4 53. Bd5) 50... Rxa4 {[%emt 0:00:04]} 51. Be4 {[%emt 0:00:02][%cal Oh3h4]} Ra1+ {[%emt 0:00:01]} 52. Kg2 {[%emt 0:00:01][%cal Oh3h4]} Ra2+ {[%emt 0:00:01]} 53. Kg1 {[%emt 0:00:01][%cal Oh3h4]} h4 {[%emt 0:00:01]} 54. Rg5+ {[%emt 0:00:03]} Kf6 {[%emt 0:00:02]} (54... Kh6 $17 55. Rg4 Be7 56. Rg6+ Kh5) 55. Rg4 {[%emt 0:00:01]} Bb4 {[%emt 0:00:03]} 56. Rxh4 {[%emt 0:00:02]} Bd2 {[%emt 0:00:01] ...Be3+ would be deadly.} 57. Rg4 {[%emt 0:00:02]} Be3+ {[%emt 0:00:01]} 58. Kf1 {[%emt 0:00:01]} Rf2+ {[%emt 0:00:01]} 59. Ke1 {[%emt 0:00:01]} Rh2 {[%emt 0:00:02]} 60. Kf1 {[%emt 0:00:04]} Rf2+ {[%emt 0:00:05]} 61. Ke1 {[%emt 0:00:01]} Bf4 {[%emt 0:00:02]} 62. h4 {[%emt 0:00:02]} Ke5 {[%emt 0:00:01]} 63. h5 {[%emt 0:00:05]} Rh2 {[%emt 0:00:01]} 64. Rg7 {[%emt 0:00:02]} Kd6 {[%emt 0:00:01]} 65. Kf1 {[%emt 0:00:02]} (65. Rg4 $11 Ke5 66. Rg7) 65... Rxh5 $17 {[%emt 0:00:02] Black converts the advantage convincingly.} 66. Rf7 {[%emt 0:00:02]} Be5 {[%emt 0:00:02]} 67. Rd7+ {[%emt 0:00:03]} Kc5 {[%emt 0:00:01]} 68. Rh7 {[%emt 0:00:01] Dodges Bd6} Rg5 {[%emt 0:00:01]} 69. Kg2 {[%emt 0:00:01]} Bd6 {[%emt 0:00:01]} 70. Rf7 {[%emt 0:00:02] [#]} (70. Rh1 $17) 70... Kb4 $1 $19 {[%emt 0:00:01]} 71. Rf1 {[%emt 0:00:02]} Kc3 {[%emt 0:00:01]} 72. Rh1 {[%emt 0:00:03]} Ra5 {[%emt 0:00:01]} 73. Rg1 $2 {[%emt 0:00:02]} (73. Rc1+ Kd2 74. Rf1) 73... Ra2+ {[%emt 0:00:02]} 74. Kf3 {[%emt 0:00:02]} Rf2+ {[%emt 0:00:01]} 75. Kg4 {[%emt 0:00:00]} Kd2 {[%emt 0:00:01]} 76. Kh3 {[%emt 0:00:02]} Ke2 {[%emt 0:00:03]} 77. Rg2 {[%emt 0:00:02]} Ke3 {[%emt 0:00:05] aiming for ...Rf8.} 78. Rg1 {[%emt 0:00:03]} Rh2+ {[%emt 0:00:03]} 79. Kg4 {[%emt 0:00:01]} Kf2 {[%emt 0:00:04]} 80. Ra1 {[%emt 0:00:01]} Rh8 {[%emt 0:00:03]} ({And not} 80... g2 81. Ra2+ Kf1 82. Ra1+ Kf2 83. Ra2+ Ke3 84. Rxg2 $17) 81. Ra2+ {[%emt 0:00:03]} Ke3 {[%emt 0:00:01]} 82. Rg2 {[%emt 0:00:04]} Re8 {[%emt 0:00:01]} 83. Bf5 {[%emt 0:00:02]} Rg8+ {[%emt 0:00:02]} 84. Kh5 {[%emt 0:00:01]} Kf4 {[%emt 0:00:02]} 85. Be4 {[%emt 0:00:02]} Rh8+ {[%emt 0:00:01]} 86. Kg6 {[%emt 0:00:01]} Re8 {[%emt 0:00:06] ( -> ...Rxe4)} 87. Re2 {[%emt 0:00:02] [#]} Rxe4 $1 {[%emt 0:00:04][%mdl 512] Black mates.} 88. dxe4 {[%emt 0:00:05]} (88. Rxe4+ Kf3) 88... d3 {[%emt 0:00:01][%cal Bd4d3,Bd3d2][%mdl 32]} 89. Re1 {[%emt 0:00:02]} d2 {[%emt 0:00:01]} 90. Rd1 {[%emt 0:00:01]} g2 {[%emt 0:00:01] Weighted Error Value: White=0.18 (very precise) /Black=0.14 (very precise)} 0-1

[Event "Superbet Blitz Poland 2023"]
[Site "Warsaw"]
[Date "2023.05.25"]
[Round "10"]
[White "So, Wesley"]
[Black "Wojtaszek, Radoslaw"]
[Result "1-0"]
[ECO "D02"]
[WhiteElo "2760"]
[BlackElo "2670"]
[Annotator "TA"]
[PlyCount "115"]
[EventDate "2023.05.24"]
[EventType "tourn"]
[EventCountry "POL"]
[SourceTitle "playchess.com"]
[Source "ChessBase"]
[SourceQuality "1"]
[TimeControl "300+2"]

{[%evp 9,115,37,43,43,43,33,43,44,47,31,45,46,48,29,27,13,17,16,44,30,41,0,0,-18,-23,-23,-38,-22,-2,-7,-11,-16,-8,-8,0,-22,0,-105,-82,-86,-79,-79,-72,-79,-35,-72,0,-14,-8,-16,-17,-9,-10,-10,0,0,0,0,0,-7,0,0,0,0,0,0,0,0,0,0,0,-7,0,-8,0,0,0,-8,0,0,0,0,0,0,0,0,0,0,0,-8,0,0,0,0,0,0,0,0,0,0,697,593,714,682,1911,1784,1250,1204]} 1. Nf3 {[%emt 0:00:03]} d5 {[%emt 0:00:01]} 2. e3 {[%emt 0:00:01]} c5 {[%emt 0:00:02]} 3. d4 {[%emt 0:00:13]} Nc6 {[%emt 0:00:07]} 4. c4 {[%emt 0:00:06]} cxd4 {[%emt 0:00:03]} 5. cxd5 {[%emt 0:00:15]} Qa5+ {[%emt 0:00:14]} 6. Qd2 {[%emt 0:00:12] D02: 1 d4 d5 2 Nf3 sidelines, including 2...Nf6 3 g3 and 2...Nf6 3 Bf4.} Qxd5 {[%emt 0:00:16]} 7. Nc3 {[%emt 0:00:06]} Qd8 {[%emt 0:00:18]} 8. exd4 {[%emt 0:00:05] White is slightly better.} e6 {[%emt 0:00:03] [#]} 9. Bd3 $146 {[%emt 0:00:10]} ({Predecessor:} 9. Bc4 Nf6 10. O-O Be7 11. d5 exd5 12. Nxd5 Nxd5 13. Qxd5 Qxd5 14. Bxd5 O-O 15. Bg5 Bxg5 16. Nxg5 h6 17. Nf3 Bd7 {½-½ Petrungaro,O-Martino,J Buenos Aires Traffic op 1992 (4)}) 9... Nf6 {[%emt 0:00:10]} 10. O-O {[%emt 0:00:02]} Be7 {[%emt 0:00:14]} (10... Nxd4 $2 11. Nxd4 Be7 12. Rd1 $18) 11. a3 {[%emt 0:00:10]} O-O {[%emt 0:00:03]} (11... Nxd4 $2 12. Nxd4 O-O 13. Rd1 $18) 12. Rd1 {[%emt 0:00:04]} b6 {[%emt 0:00:06]} 13. Qf4 {[%emt 0:00:21]} Bb7 {[%emt 0:00:21]} 14. Qh4 {[%emt 0:00:04][%cal Od4d5]} g6 {[%emt 0:00:06]} 15. Bg5 {[%emt 0:00:27][%cal Od4d5]} (15. Bh6 $5 {[%cal Rh6f8]}) 15... Nh5 {[%emt 0:00:16]} 16. Be4 {[%emt 0:00:10] Bxe7 would be deadly.} Bxg5 {[%emt 0:00:15]} (16... f6 {seems wilder.} 17. d5 fxg5 18. dxc6 gxh4 19. cxb7 Rb8) 17. Qxg5 {[%emt 0:00:27]} Qxg5 {[%emt 0:00:01]} 18. Nxg5 {[%emt 0:00:01]} Nf6 {[%emt 0:00:08]} (18... h6 $5 {[%cal Rh6g5]} 19. Nf3 Nf6 $15) 19. d5 {[%emt 0:00:02]} exd5 {[%emt 0:00:04]} 20. Nxd5 {[%emt 0:00:04]} Nxe4 {[%emt 0:00:17]} 21. Nxe4 {[%emt 0:00:01]} Rfd8 {[%emt 0:00:01] Dodges Nd6} 22. f4 {[%emt 0:00:42]} Kg7 {[%emt 0:00:01]} 23. b4 {[%emt 0:00:17] [#]} (23. Nc7 $11 Rac8 24. Rxd8 Rxd8 25. Nd6) 23... Ne7 $1 {[%emt 0:00:18][%mdl 512]} 24. Ndc3 {[%emt 0:00:06]} (24. Nxe7 Bxe4) 24... Nf5 {[%emt 0:00:04] Repels Nd6} 25. Kf2 {[%emt 0:00:11]} h5 {[%emt 0:00:08]} (25... Rdc8 $5 {[%cal Rc8c4]} 26. Rd7 Bc6 $17) 26. Ng3 {[%emt 0:00:04]} Nd4 {[%emt 0:00:06]} 27. Nge2 {[%emt 0:00:04] [#]} Nf5 {[%emt 0:00:19]} (27... Nxe2 $1 $17 28. Nxe2 Rac8) 28. g3 {[%emt 0:00:12]} Rac8 {[%emt 0:00:11]} 29. Rxd8 {[%emt 0:00:02]} Rxd8 {[%emt 0:00:01]} 30. Rd1 {[%emt 0:00:01]} Rxd1 31. Nxd1 $11 {[%emt 0:00:00][%mdl 4096] Endgame KBN-KNN} Nd6 {[%emt 0:00:05]} 32. Ne3 {[%emt 0:00:11]} Bc6 {[%emt 0:00:45]} 33. Nc3 {[%emt 0:00:02]} Kf6 {[%emt 0:00:07]} 34. Ke2 {[%emt 0:00:04]} Ke6 {[%emt 0:00:00]} 35. Kd3 {[%emt 0:00:02]} f6 {[%emt 0:00:05]} 36. Nc2 {[%emt 0:00:07]} Bb7 {[%emt 0:00:05]} 37. Nd4+ {[%emt 0:00:03]} Kd7 {[%emt 0:00:01]} 38. a4 {[%emt 0:00:06]} Bg2 {[%emt 0:00:01]} 39. Ke3 {[%emt 0:00:07]} Bb7 {[%emt 0:00:03]} 40. h4 {[%emt 0:00:07]} Bg2 {[%emt 0:00:02]} 41. Kf2 {[%emt 0:00:12]} Bb7 {[%emt 0:00:06]} 42. Ke3 {[%emt 0:00:02]} Bg2 {[%emt 0:00:02]} 43. Ncb5 {[%emt 0:00:05]} a6 {[%emt 0:00:11]} 44. Nc3 {[%emt 0:00:04]} Nc4+ {[%emt 0:00:03]} 45. Kd3 {[%emt 0:00:01]} Nb2+ {[%emt 0:00:13]} 46. Kc2 {[%emt 0:00:05]} Nc4 {[%emt 0:00:01]} 47. Kd3 {[%emt 0:00:02]} Nb2+ {[%emt 0:00:01]} 48. Ke2 {[%emt 0:00:02]} (48. Kc2 $5 Nc4 $8 49. Nd1 $11) 48... Nc4 {[%emt 0:00:02]} 49. f5 {[%emt 0:00:13]} gxf5 {[%emt 0:00:03]} 50. Nxf5 {[%emt 0:00:03]} Bh3 {[%emt 0:00:03]} 51. Ne3 {[%emt 0:00:02]} Be6 {[%emt 0:00:24]} 52. Nxc4 {[%emt 0:00:03]} Bxc4+ {[%emt 0:00:01] KB-KN} 53. Ke3 {[%emt 0:00:00]} Ke6 {[%emt 0:00:01]} 54. Kd4 {[%emt 0:00:10]} Bf1 {[%emt 0:00:03][%mdl 8192]} (54... Bb3 $11) 55. Nd5 $18 {[%emt 0:00:02] White is clearly winning.} b5 {[%emt 0:00:04]} 56. a5 {[%emt 0:00:01] aiming for Kc5.} Kd6 {[%emt 0:00:01]} 57. Nf4 {[%emt 0:00:02] Against Be2} Bc4 {[%emt 0:00:02]} 58. Nxh5 {[%emt 0:00:01] Weighted Error Value: White=0.10 (very precise) /Black=0.21 (precise)} 1-0

[Event "Superbet Blitz Poland 2023"]
[Site "Warsaw"]
[Date "2023.05.25"]
[Round "10"]
[White "Aronian, Levon"]
[Black "Giri, Anish"]
[Result "1/2-1/2"]
[ECO "D02"]
[WhiteElo "2745"]
[BlackElo "2768"]
[Annotator "TA"]
[PlyCount "100"]
[EventDate "2023.05.24"]
[EventType "tourn"]
[EventCountry "POL"]
[SourceTitle "playchess.com"]
[Source "ChessBase"]
[SourceQuality "1"]
[TimeControl "300+2"]

{[%evp 9,100,0,14,15,27,10,43,39,48,38,20,6,8,10,10,10,13,18,3,15,28,28,60,64,62,58,59,62,65,58,65,51,51,52,58,58,59,60,63,63,66,66,65,54,59,55,59,59,59,55,66,59,68,59,76,80,75,56,57,55,66,0,0,0,0,0,0,0,0,0,0,0,0,0,0,0,0,0,0,0,0,0,0,0,0,0,0,0,0,0,0,0,0]} 1. d4 {[%emt 0:00:01]} Nf6 {[%emt 0:00:00]} 2. Bf4 {[%emt 0:00:02]} d5 {[%emt 0:00:01]} 3. e3 {[%emt 0:00:01]} c5 {[%emt 0:00:01]} 4. Nf3 {[%emt 0:00:02]} Nc6 {[%emt 0:00:01]} 5. Nbd2 {[%emt 0:00:02]} Nh5 {[%emt 0:00:01]} 6. dxc5 {[%emt 0:00:03] D02: 1 d4 d5 2 Nf3 sidelines, including 2...Nf6 3 g3 and 2...Nf6 3 Bf4.} Nxf4 {[%emt 0:00:01]} 7. exf4 {[%emt 0:00:01]} g6 {[%emt 0:00:01]} 8. c3 {[%emt 0:00:02] White is slightly better.} Bg7 {[%emt 0:00:01]} 9. Bb5 {[%emt 0:00:13]} O-O {[%emt 0:00:02]} 10. O-O {[%emt 0:00:11]} d4 {[%emt 0:00:11]} 11. Bxc6 {[%emt 0:00:18]} dxc3 {[%emt 0:00:01][%mdl 64] [#] Discovered Attack} 12. Be4 {[%emt 0:00:01] bxc3 is the strong threat.} cxd2 {[%emt 0:00:01]} 13. Qxd2 {[%emt 0:00:02]} Qxd2 {[%emt 0:00:12]} 14. Nxd2 {[%emt 0:00:01]} Bxb2 {[%emt 0:01:41]} 15. Rab1 {[%emt 0:00:02][%cal Ba1b1,Bb1b7,Bb7e7][%mdl 32] [#]} Bc3 $146 {[%emt 0:00:02]} ({Predecessor:} 15... Ba3 16. c6 bxc6 17. Bxc6 Ba6 18. Bxa8 Bxf1 19. Kxf1 Rxa8 20. Rb7 Kf8 21. Ne4 a5 {½-½ Kamsky,G (2665)-Matlakov,M (2688) EU-Cup Online Final rapid 2021 (8.2)}) 16. Nf3 {[%emt 0:00:21][%cal Og2g3]} a5 {[%emt 0:01:14]} ({Not} 16... Rb8 17. Rfc1 (17. c6 b5 $16) 17... Ba5 18. c6 $16) 17. Bxb7 {[%emt 0:01:37] White has more active pieces. The black rooks are badly placed.} Bxb7 {[%emt 0:00:01]} 18. Rxb7 {[%emt 0:00:02][%cal Oc5c6] aiming for c6!} Rac8 {[%emt 0:00:01]} 19. Rxe7 {[%emt 0:00:38]} Rxc5 {[%emt 0:00:01]} 20. Rb1 {[%emt 0:00:09]} Bb4 {[%emt 0:00:18]} 21. Re2 $1 {[%emt 0:00:11]} Rfc8 {[%emt 0:00:05] [#] Threatens to win with ...Rc1+.} 22. g3 {[%emt 0:00:04]} Rc2 {[%emt 0:00:02]} 23. Rb2 $1 {[%emt 0:00:04]} Rxb2 {[%emt 0:00:06]} 24. Rxb2 $14 {[%emt 0:00:01][%mdl 4096] Endgame KRB-KRN} Rc3 {[%emt 0:00:03]} 25. Kg2 {[%emt 0:00:10]} Kg7 {[%emt 0:00:40]} 26. h4 {[%emt 0:00:03]} Be7 {[%emt 0:00:05]} 27. Ne1 {[%emt 0:00:40]} Bf6 {[%emt 0:00:06][%cal Oc3g3]} 28. Rc2 {[%emt 0:00:04]} Ra3 {[%emt 0:00:01]} 29. Kf1 {[%emt 0:00:01]} Ra4 {[%emt 0:00:09]} 30. Nd3 {[%emt 0:00:02]} h5 {[%emt 0:00:07]} 31. Ke2 {[%emt 0:00:01]} Re4+ {[%emt 0:00:01]} 32. Kf3 {[%emt 0:00:02]} Ra4 {[%emt 0:00:01]} 33. Ke3 {[%emt 0:00:06]} Bd4+ {[%emt 0:00:01]} 34. Ke2 {[%emt 0:00:04]} Ra3 {[%emt 0:00:00]} 35. Ne5 {[%emt 0:00:09]} ({White should play} 35. Nc1 $14) 35... Bxe5 $1 $11 {[%emt 0:00:05] The position is equal.} 36. fxe5 {[%emt 0:00:01] KR-KR} Kf8 {[%emt 0:00:01]} 37. Kf1 {[%emt 0:00:19]} Ke7 {[%emt 0:00:02]} 38. Kg2 {[%emt 0:00:02]} Ke6 {[%emt 0:00:00]} 39. f4 {[%emt 0:00:00]} Ke7 {[%emt 0:00:09]} 40. Rf2 {[%emt 0:00:07]} Ke6 {[%emt 0:00:01]} 41. Rb2 {[%emt 0:00:02]} Ke7 {[%emt 0:00:01]} 42. Rd2 {[%emt 0:00:06]} Ke6 {[%emt 0:00:01]} 43. Rf2 {[%emt 0:00:00]} Kf5 {[%emt 0:00:09] Strongly threatening ...Kg4.} 44. Kh3 {[%emt 0:00:03]} Ke6 {[%emt 0:00:01]} 45. Rc2 {[%emt 0:00:05]} Ke7 {[%emt 0:00:01]} 46. Rd2 {[%emt 0:00:01]} Ra4 {[%emt 0:00:07]} 47. Rf2 {[%emt 0:00:07]} Ke6 {[%emt 0:00:01]} 48. Rd2 {[%emt 0:00:02]} Ke7 {[%emt 0:00:00]} 49. Rf2 {[%emt 0:00:01]} Ke6 {[%emt 0:00:01]} 50. Rd2 {[%emt 0:00:00]} Ke7 {Weighted Error Value: White=0.04 (flawless) /Black=0.04 (flawless)} 1/2-1/2

[Event "Superbet Blitz Poland 2023"]
[Site "Warsaw"]
[Date "2023.05.25"]
[Round "10"]
[White "Vachier-Lagrave, Maxime"]
[Black "Carlsen, Magnus"]
[Result "0-1"]
[ECO "B12"]
[WhiteElo "2742"]
[BlackElo "2853"]
[Annotator "TA"]
[PlyCount "92"]
[EventDate "2023.05.24"]
[EventType "tourn"]
[EventCountry "POL"]
[SourceTitle "playchess.com"]
[Source "ChessBase"]
[SourceQuality "1"]
[TimeControl "300+2"]

{[%evp 9,92,16,16,8,14,10,57,55,56,57,59,55,63,61,49,58,66,66,66,56,63,47,57,57,61,47,91,58,73,57,79,58,64,61,60,51,51,51,51,51,51,51,51,53,73,51,51,51,48,48,70,0,0,0,0,0,0,-13,-9,-22,-16,-81,-81,-139,-152,-145,-128,-117,-117,-97,-81,-139,-139,-162,-126,-103,-124,-323,-329,-337,-330,-839,-847,-1096,-1070]} 1. e4 {[%emt 0:00:01]} c6 {[%emt 0:00:01]} 2. d4 {[%emt 0:00:07]} d5 {[%emt 0:00:02]} 3. e5 {[%emt 0:00:01]} Bf5 {[%emt 0:00:02]} 4. h4 {[%emt 0:00:02]} h5 {[%emt 0:00:07]} 5. Bd3 {[%emt 0:00:02]} Bxd3 {[%emt 0:00:07]} 6. Qxd3 {[%emt 0:00:02][%cal Oe5e6] B12: Caro-Kann: Advance Variation.} Qa5+ {[%emt 0:00:02]} 7. Nd2 {[%emt 0:00:20][%cal Oe5e6] e6! is the strong threat.} Qa6 {[%emt 0:00:12] [#]} (7... e6 $1 $11 {is superior.}) 8. e6 $1 $14 {[%emt 0:00:09] White is slightly better.} Qxd3 {[%emt 0:00:02]} 9. exf7+ {[%emt 0:00:02]} Kxf7 {[%emt 0:00:02]} 10. cxd3 {[%emt 0:00:01]} Nd7 {[%emt 0:00:15] 10...Nh6 is the modern continuation.} 11. Ndf3 {[%emt 0:00:02]} Nh6 {[%emt 0:00:21]} 12. Nh3 {[%emt 0:00:39][%cal Bg1h3,Bh3g5,Bg5e6][%mdl 32]} Nf5 {[%emt 0:00:11]} 13. Nhg5+ {[%emt 0:00:01]} Kg8 {[%emt 0:00:48]} 14. Ne6 {[%emt 0:00:02]} g6 {[%emt 0:00:03]} 15. O-O {[%emt 0:00:46]} Bg7 {[%emt 0:00:02]} 16. Nxg7 {[%emt 0:00:09]} Kxg7 {[%emt 0:00:02] [#]} 17. Re1 $146 {[%emt 0:00:03]} ({Predecessor:} 17. Bd2 a5 18. Rfe1 Rhe8 19. Rac1 e6 20. Re2 Kf6 21. g3 Rac8 22. Rce1 b6 23. Bg5+ {0-1 Howell,D (2698)-Dvirnyy,D (2542) EU-chT (Men) 21st 2017 (4.3)}) 17... Rae8 {[%emt 0:00:05]} 18. g3 {[%emt 0:00:22]} Rhf8 {[%emt 0:00:03][%cal Of5g3] [#]} 19. Kg2 {[%emt 0:00:02]} a5 {[%emt 0:00:25]} 20. b3 {[%emt 0:00:01]} Ra8 {[%emt 0:00:05]} 21. a4 {[%emt 0:00:08]} Rfe8 {[%emt 0:00:05]} 22. Ba3 {[%emt 0:00:13]} Ra6 {[%emt 0:00:01]} 23. Re2 {[%emt 0:00:26]} Rb6 {[%emt 0:00:03]} 24. Rb1 {[%emt 0:00:01]} Kf6 {[%emt 0:00:11]} 25. Bc1 {[%emt 0:00:10]} Kg7 {[%emt 0:00:10]} 26. Bd2 {[%emt 0:00:04]} Ra6 {[%emt 0:00:13]} 27. Ng5 {[%emt 0:00:11]} Kg8 {[%emt 0:00:15]} 28. Ne6 {[%emt 0:00:09] Hoping for Nc7.} Rc8 {[%emt 0:00:04] Inhibits Nc7.} 29. Ree1 {[%emt 0:00:52]} Nf8 {[%emt 0:00:04]} 30. Nf4 {[%emt 0:00:16]} (30. Ng5 $1 $14) 30... Kf7 $11 {[%emt 0:00:07]} 31. Bc3 {[%emt 0:00:01]} b5 {[%emt 0:00:15]} 32. Re5 {[%emt 0:00:16]} Rb8 {[%emt 0:00:11][%cal Bc8b8,Bb8b3,Bb3a3,Ba3a4][%mdl 32] aiming for ...bxa4.} 33. Rc1 {[%emt 0:00:05]} bxa4 {[%emt 0:00:02]} 34. bxa4 {[%emt 0:00:01]} Rb3 {[%emt 0:00:01]} 35. Kh3 {[%emt 0:00:12]} (35. Nh3 $11 {remains equal.}) 35... Ra3 {[%emt 0:00:21]} 36. g4 {[%emt 0:00:01]} ({White should try} 36. f3) 36... hxg4+ $17 {[%emt 0:00:02]} 37. Kxg4 {[%emt 0:00:01]} e6 {[%emt 0:00:45]} 38. h5 {[%emt 0:00:06]} gxh5+ {[%emt 0:00:01]} (38... Rxa4 $2 39. hxg6+ Kg8 40. Nxe6 Nxe6 41. Rxe6 $18) 39. Kxh5 {[%emt 0:00:01][%cal Of4e6]} Ng7+ {[%emt 0:00:06] A dynamic duo of knights.} (39... Kf6 {keeps more tension.} 40. Kg4 Rxa4 41. Rce1 Ng7) 40. Kg4 {[%emt 0:00:01]} (40. Kg5 $142) 40... Rxa4 {[%emt 0:00:02]} 41. Nh3 {[%emt 0:00:04]} Nh7 {[%emt 0:00:03]} 42. Rb1 {[%emt 0:00:04]} Ra7 {[%emt 0:00:01] Prevents Rb7+.} 43. Rb6 $2 {[%emt 0:00:01] [#] Loses the game.} (43. Ree1 $17 {was worth a try.}) 43... Nf6+ $1 $19 {[%emt 0:00:07]} 44. Kf3 {[%emt 0:00:03]} Nd7 $1 {[%emt 0:00:01][%csl LRb6,LRe5]} 45. Ng5+ $2 {[%emt 0:00:02]} (45. Rxc6 Nxe5+ 46. dxe5) 45... Kg6 {[%emt 0:00:01]} 46. Nxe6 {[%emt 0:00:04]} Nxe5+ {[%emt 0:00:02] Weighted Error Value: White=0.38/Black=0.05 (flawless)} 0-1